[Event "32nd NATO Chess Championship"]
[Site "Tartu, Estonia"]
[Date "2022.06.28"]
[Round "3.21"]
[White "Van Den Heuvel, Tonnie"]
[Black "Nilsson, Erik"]
[Result "0-1"]
[TimeControl "90 min + 30 sec increment from move one"]
[WhiteFideId "1012924"]
[BlackFideId "1409000"]
[WhiteElo "1799"]
[BlackElo "2002"]

1. b3 {[%clk 01:30:58]} {[%emt 02:45:19]} e5 {[%clk 01:30:51]} {[%emt
00:00:10]} 2. Bb2 {[%clk 01:31:20]} {[%emt 00:00:07]} Nc6 {[%clk 01:31:15]}
{[%emt 00:00:06]} 3. e3 {[%clk 01:31:44]} {[%emt 00:00:06]} Nf6 {[%clk
01:31:36]} {[%emt 00:00:10]} 4. Bb5 {[%clk 01:31:35]} {[%emt 00:00:39]} e4
{[%clk 01:30:31]} {[%emt 00:01:35]} 5. d4 {[%clk 01:24:21]} {[%emt 00:07:44]}
exd3 {[%clk 01:27:52]} {[%emt 00:03:09]} 6. Qxd3 {[%clk 01:18:50]} {[%emt
00:06:00]} Nb4 {[%clk 01:25:28]} {[%emt 00:02:54]} 7. Qd1 {[%clk 01:18:03]}
{[%emt 00:01:17]} c6 {[%clk 01:22:54]} {[%emt 00:03:04]} 8. Be2 {[%clk
01:18:07]} {[%emt 00:00:26]} a5 {[%clk 01:22:49]} {[%emt 00:00:35]} 9. a3
{[%clk 01:17:19]} {[%emt 00:01:18]} Na6 {[%clk 01:23:08]} {[%emt 00:00:11]} 10.
Nf3 {[%clk 01:16:57]} {[%emt 00:00:52]} Be7 {[%clk 01:20:32]} {[%emt 00:03:06]}
11. O-O {[%clk 01:16:04]} {[%emt 00:01:23]} O-O {[%clk 01:20:54]} {[%emt
00:00:08]} 12. Nc3 {[%clk 01:15:41]} {[%emt 00:00:53]} Nc5 {[%clk 01:19:33]}
{[%emt 00:01:51]} 13. Re1 {[%clk 01:05:45]} {[%emt 00:10:26]} Re8 {[%clk
01:18:50]} {[%emt 00:01:13]} 14. Qd4 {[%clk 01:03:22]} {[%emt 00:02:53]} Ne6
{[%clk 01:16:41]} {[%emt 00:02:38]} 15. Qd2 {[%clk 01:03:15]} {[%emt 00:00:37]}
d6 {[%clk 01:16:18]} {[%emt 00:00:54]} 16. Rad1 {[%clk 01:02:54]} {[%emt
00:00:49]} Qc7 {[%clk 01:16:07]} {[%emt 00:00:43]} 17. Nd4 {[%clk 01:02:46]}
{[%emt 00:00:38]} Nf8 {[%clk 01:15:07]} {[%emt 00:01:30]} 18. Bd3 {[%clk
01:02:28]} {[%emt 00:00:48]} Ng6 {[%clk 01:14:57]} {[%emt 00:00:40]} 19. Nf5
{[%clk 01:00:16]} {[%emt 00:02:41]} Bf8 {[%clk 01:14:26]} {[%emt 00:01:01]} 20.
Ne2 {[%clk 00:59:30]} {[%emt 00:01:17]} Ne5 {[%clk 01:08:59]} {[%emt 00:05:56]}
21. Bxe5 {[%clk 00:53:14]} {[%emt 00:06:47]} dxe5 {[%clk 01:09:01]} {[%emt
00:00:28]} 22. f3 {[%clk 00:37:30]} {[%emt 00:16:14]} Bxa3 {[%clk 01:04:58]}
{[%emt 00:04:33]} 23. e4 {[%clk 00:33:06]} {[%emt 00:04:54]} Bxf5 {[%clk
01:04:05]} {[%emt 00:01:22]} 24. exf5 {[%clk 00:33:28]} {[%emt 00:00:09]} e4
{[%clk 00:59:20]} {[%emt 00:05:16]} 25. fxe4 {[%clk 00:30:04]} {[%emt
00:03:53]} Ng4 {[%clk 00:58:04]} {[%emt 00:01:46]} 26. Nf4 {[%clk 00:28:43]}
{[%emt 00:01:52]} Bc5+ {[%clk 00:54:37]} {[%emt 00:03:56]} 27. Kf1 {[%clk
00:28:20]} {[%emt 00:00:53]} Be3 {[%clk 00:52:28]} {[%emt 00:02:39]} 28. Rxe3
{[%clk 00:28:28]} {[%emt 00:00:22]} Qxf4+ {[%clk 00:52:50]} {[%emt 00:00:07]}
29. Rf3 {[%clk 00:28:51]} {[%emt 00:00:07]} Nxh2+ {[%clk 00:52:37]} {[%emt
00:00:43]} 30. Ke2 {[%clk 00:26:48]} {[%emt 00:02:33]} Qxd2+ {[%clk 00:52:54]}
{[%emt 00:00:13]} 31. Rxd2 {[%clk 00:27:10]} {[%emt 00:00:09]} Nxf3 {[%clk
00:53:17]} {[%emt 00:00:07]} 0-1

[Event "32nd NATO Chess Championship"]
[Site "Tartu, Estonia"]
[Date "2022.06.28"]
[Round "3.23"]
[White "Nielsen, Jan Mose"]
[Black "Charles, Freddy"]
[Result "1-0"]
[TimeControl "90 min + 30 sec increment from move one"]
[WhiteFideId "1405306"]
[BlackFideId "1742"]
[WhiteElo "1991"]
[BlackElo "1742"]

1. d4 {[%clk 01:30:57]} {[%emt 00:00:03]} Nf6 {[%clk 01:30:48]} {[%emt
00:00:11]} 2. Bg5 {[%clk 01:31:05]} {[%emt 00:00:23]} d6 {[%clk 01:31:06]}
{[%emt 00:00:12]} 3. Nc3 {[%clk 01:31:11]} {[%emt 00:00:24]} c6 {[%clk
01:31:23]} {[%emt 00:00:14]} 4. e4 {[%clk 01:27:20]} {[%emt 00:04:20]} Nbd7
{[%clk 01:31:02]} {[%emt 00:00:51]} 5. f4 {[%clk 01:25:13]} {[%emt 00:02:37]}
Qa5 {[%clk 01:27:52]} {[%emt 00:03:41]} 6. Bd3 {[%clk 01:17:18]} {[%emt
00:08:24]} e5 {[%clk 01:22:50]} {[%emt 00:05:32]} 7. Nf3 {[%clk 01:09:42]}
{[%emt 00:08:06]} Be7 {[%clk 01:16:14]} {[%emt 00:07:06]} 8. Qd2 {[%clk
01:02:09]} {[%emt 00:08:03]} Ng8 {[%clk 01:11:29]} {[%emt 00:05:14]} 9. fxe5
{[%clk 00:30:57]} {[%emt 00:31:43]} dxe5 {[%clk 01:11:10]} {[%emt 00:00:49]} 10.
d5 {[%clk 00:24:51]} {[%emt 00:06:36]} Bb4 {[%clk 01:07:25]} {[%emt 00:04:15]}
11. O-O-O {[%clk 00:18:34]} {[%emt 00:06:47]} f6 {[%clk 01:03:03]} {[%emt
00:04:51]} 12. dxc6 {[%clk 00:17:12]} {[%emt 00:01:53]} bxc6 {[%clk 01:02:54]}
{[%emt 00:00:39]} 13. Be3 {[%clk 00:17:23]} {[%emt 00:00:19]} Ne7 {[%clk
00:58:59]} {[%emt 00:04:25]} 14. Bc4 {[%clk 00:17:19]} {[%emt 00:00:34]} Qc7
{[%clk 00:56:44]} {[%emt 00:02:45]} 15. a3 {[%clk 00:15:20]} {[%emt 00:02:30]}
Bc5 {[%clk 00:54:49]} {[%emt 00:02:24]} 16. Rhe1 {[%clk 00:14:15]} {[%emt
00:01:35]} a5 {[%clk 00:50:26]} {[%emt 00:04:53]} 17. Na4 {[%clk 00:11:45]}
{[%emt 00:03:00]} Bxe3 {[%clk 00:50:00]} {[%emt 00:00:56]} 18. Rxe3 {[%clk
00:12:06]} {[%emt 00:00:08]} Nb6 {[%clk 00:49:46]} {[%emt 00:00:45]} 19. Nxb6
{[%clk 00:12:13]} {[%emt 00:00:23]} Qxb6 {[%clk 00:50:03]} {[%emt 00:00:14]} 20.
Rd3 {[%clk 00:12:06]} {[%emt 00:00:36]} Bb7 {[%clk 00:48:35]} {[%emt 00:01:58]}
21. Rd7 {[%clk 00:12:02]} {[%emt 00:00:34]} 1-0

[Event "32nd NATO Chess Championship"]
[Site "Tartu, Estonia"]
[Date "2022.06.28"]
[Round "3.24"]
[White "Moulton, Richard"]
[Black "Aagaard, Gert"]
[Result "0-1"]
[TimeControl "90 min + 30 sec increment from move one"]
[WhiteFideId "2622718"]
[BlackFideId "1427024"]
[WhiteElo "1766"]
[BlackElo "1979"]

1. e4 {[%clk 01:30:57]} {[%emt 00:00:02]} c5 {[%clk 01:30:59]} {[%emt
00:00:02]} 2. Nf3 {[%clk 01:31:17]} {[%emt 00:00:10]} Nc6 {[%clk 01:31:27]}
{[%emt 00:00:01]} 3. Bb5 {[%clk 01:31:34]} {[%emt 00:00:13]} e6 {[%clk
01:31:56]} {[%emt 00:00:02]} 4. O-O {[%clk 01:29:40]} {[%emt 00:02:23]} Nge7
{[%clk 01:32:23]} {[%emt 00:00:03]} 5. Re1 {[%clk 01:27:59]} {[%emt 00:02:10]}
a6 {[%clk 01:32:51]} {[%emt 00:00:03]} 6. Bf1 {[%clk 01:28:07]} {[%emt
00:00:21]} d5 {[%clk 01:33:18]} {[%emt 00:00:04]} 7. exd5 {[%clk 01:24:31]}
{[%emt 00:04:06]} Nxd5 {[%clk 01:33:45]} {[%emt 00:00:02]} 8. d4 {[%clk
01:22:18]} {[%emt 00:02:44]} Nf6 {[%clk 01:33:39]} {[%emt 00:00:37]} 9. dxc5
{[%clk 01:18:11]} {[%emt 00:04:37]} Qxd1 {[%clk 01:34:01]} {[%emt 00:00:07]} 10.
Rxd1 {[%clk 01:18:34]} {[%emt 00:00:07]} Bxc5 {[%clk 01:34:25]} {[%emt
00:00:06]} 11. Nc3 {[%clk 01:14:33]} {[%emt 00:04:32]} Nb4 {[%clk 01:32:32]}
{[%emt 00:02:22]} 12. Bg5 {[%clk 01:05:32]} {[%emt 00:09:31]} Nxc2 {[%clk
01:18:28]} {[%emt 00:14:34]} 13. Rac1 {[%clk 01:05:51]} {[%emt 00:00:10]} Nb4
{[%clk 01:18:54]} {[%emt 00:00:05]} 14. Bxf6 {[%clk 00:54:38]} {[%emt
00:11:44]} gxf6 {[%clk 01:19:16]} {[%emt 00:00:07]} 15. Ne4 {[%clk 00:55:00]}
{[%emt 00:00:08]} Be7 {[%clk 01:18:50]} {[%emt 00:00:57]} 16. a3 {[%clk
00:54:32]} {[%emt 00:00:58]} Nc6 {[%clk 01:10:23]} {[%emt 00:08:56]} 17. Nd6+
{[%clk 00:53:43]} {[%emt 00:01:19]} Bxd6 {[%clk 01:10:03]} {[%emt 00:00:50]} 18.
Rxd6 {[%clk 00:54:03]} {[%emt 00:00:10]} Ke7 {[%clk 01:10:24]} {[%emt
00:00:09]} 19. Rd2 {[%clk 00:50:11]} {[%emt 00:04:21]} Rd8 {[%clk 01:09:16]}
{[%emt 00:01:38]} 20. Rdc2 {[%clk 00:48:26]} {[%emt 00:02:15]} Bd7 {[%clk
01:07:14]} {[%emt 00:02:33]} 21. h3 {[%clk 00:46:38]} {[%emt 00:02:18]} Rac8
{[%clk 01:07:27]} {[%emt 00:00:17]} 22. Bd3 {[%clk 00:39:52]} {[%emt 00:07:15]}
h6 {[%clk 01:07:42]} {[%emt 00:00:16]} 23. Kf1 {[%clk 00:36:13]} {[%emt
00:04:09]} Na7 {[%clk 01:03:24]} {[%emt 00:04:47]} 24. Ke2 {[%clk 00:33:59]}
{[%emt 00:02:44]} Rxc2+ {[%clk 01:00:50]} {[%emt 00:03:05]} 25. Rxc2 {[%clk
00:34:21]} {[%emt 00:00:09]} Bc6 {[%clk 01:01:01]} {[%emt 00:00:17]} 26. Rc3
{[%clk 00:30:17]} {[%emt 00:04:34]} Rd7 {[%clk 00:58:23]} {[%emt 00:03:09]} 27.
Ne1 {[%clk 00:27:54]} {[%emt 00:02:53]} Bd5 {[%clk 00:58:06]} {[%emt 00:00:46]}
28. g3 {[%clk 00:26:43]} {[%emt 00:01:41]} Nc6 {[%clk 00:58:26]} {[%emt
00:00:10]} 29. Ke3 {[%clk 00:22:38]} {[%emt 00:04:35]} b5 {[%clk 00:58:10]}
{[%emt 00:00:46]} 30. Nc2 {[%clk 00:22:06]} {[%emt 00:01:02]} Kd8 {[%clk
00:56:51]} {[%emt 00:01:47]} 31. Be2 {[%clk 00:21:01]} {[%emt 00:01:38]} f5
{[%clk 00:53:58]} {[%emt 00:03:23]} 32. Kf4 {[%clk 00:13:49]} {[%emt 00:07:42]}
Be4 {[%clk 00:38:37]} {[%emt 00:15:50]} 33. Ke3 {[%clk 00:11:00]} {[%emt
00:03:19]} Ne7 {[%clk 00:22:47]} {[%emt 00:16:21]} 34. Rc5 {[%clk 00:09:35]}
{[%emt 00:01:55]} Nd5+ {[%clk 00:18:38]} {[%emt 00:04:38]} 35. Kd2 {[%clk
00:09:42]} {[%emt 00:00:23]} Nb4+ {[%clk 00:15:07]} {[%emt 00:04:01]} 36. Kc1
{[%clk 00:09:53]} {[%emt 00:00:20]} Nxc2 {[%clk 00:15:17]} {[%emt 00:00:20]} 37.
Rxc2 {[%clk 00:09:45]} {[%emt 00:00:38]} Bxc2 {[%clk 00:15:40]} {[%emt
00:00:07]} 38. Kxc2 {[%clk 00:10:11]} {[%emt 00:00:04]} Kc7 {[%clk 00:15:50]}
{[%emt 00:00:20]} 39. a4 {[%clk 00:09:13]} {[%emt 00:01:28]} Kb6 {[%clk
00:14:13]} {[%emt 00:02:07]} 40. axb5 {[%clk 00:09:33]} {[%emt 00:00:10]} axb5
{[%clk 00:14:35]} {[%emt 00:00:07]} 41. Kc3 {[%clk 00:08:17]} {[%emt 00:01:46]}
e5 {[%clk 00:14:15]} {[%emt 00:00:50]} 42. Bd3 {[%clk 00:08:26]} {[%emt
00:00:22]} e4 {[%clk 00:12:35]} {[%emt 00:02:09]} 43. Be2 {[%clk 00:08:33]}
{[%emt 00:00:23]} f6 {[%clk 00:11:23]} {[%emt 00:01:42]} 44. Kc2 {[%clk
00:08:39]} {[%emt 00:00:24]} Kc5 {[%clk 00:11:30]} {[%emt 00:00:23]} 45. Kc3
{[%clk 00:07:46]} {[%emt 00:01:23]} b4+ {[%clk 00:11:53]} {[%emt 00:00:07]} 46.
Kc2 {[%clk 00:08:08]} {[%emt 00:00:08]} Rd6 {[%clk 00:11:19]} {[%emt 00:01:05]}
47. b3 {[%clk 00:08:12]} {[%emt 00:00:26]} Kd4 {[%clk 00:11:18]} {[%emt
00:00:30]} 48. Kd2 {[%clk 00:07:57]} {[%emt 00:00:46]} e3+ {[%clk 00:10:40]}
{[%emt 00:01:07]} 49. fxe3+ {[%clk 00:08:19]} {[%emt 00:00:09]} Ke4+ {[%clk
00:11:04]} {[%emt 00:00:06]} 50. Ke1 {[%clk 00:06:29]} {[%emt 00:02:19]} Kxe3
{[%clk 00:11:25]} {[%emt 00:00:09]} 51. h4 {[%clk 00:06:07]} {[%emt 00:00:52]}
Rd2 {[%clk 00:11:34]} {[%emt 00:00:21]} 0-1

[Event "32nd NATO Chess Championship"]
[Site "Tartu, Estonia"]
[Date "2022.06.28"]
[Round "3.25"]
[White "Stankowski, Aleksander"]
[Black "Smit, Jan"]
[Result "1-0"]
[TimeControl "90 min + 30 sec increment from move one"]
[WhiteFideId "1137603"]
[BlackFideId "1052047"]
[WhiteElo "1971"]
[BlackElo "1741"]

1. Nf3 {[%clk 01:30:52]} {[%emt 00:00:08]} g6 {[%clk 01:30:41]} {[%emt
00:00:20]} 2. g3 {[%clk 01:31:10]} {[%emt 00:00:12]} Bg7 {[%clk 01:30:50]}
{[%emt 00:00:21]} 3. Bg2 {[%clk 01:31:29]} {[%emt 00:00:10]} Nf6 {[%clk
01:31:00]} {[%emt 00:00:20]} 4. O-O {[%clk 01:31:51]} {[%emt 00:00:08]} d6
{[%clk 01:31:04]} {[%emt 00:00:26]} 5. d3 {[%clk 01:32:10]} {[%emt 00:00:10]}
O-O {[%clk 01:31:19]} {[%emt 00:00:16]} 6. Nc3 {[%clk 01:32:25]} {[%emt
00:00:16]} c6 {[%clk 01:31:33]} {[%emt 00:00:16]} 7. e4 {[%clk 01:32:41]}
{[%emt 00:00:13]} e5 {[%clk 01:31:58]} {[%emt 00:00:05]} 8. h3 {[%clk
01:30:18]} {[%emt 00:02:53]} h6 {[%clk 01:31:01]} {[%emt 00:01:27]} 9. Nh4
{[%clk 01:29:55]} {[%emt 00:00:52]} Nh5 {[%clk 01:14:46]} {[%emt 00:16:45]} 10.
Nf5 {[%clk 01:29:36]} {[%emt 00:00:49]} gxf5 {[%clk 00:59:19]} {[%emt
00:15:58]} 11. Qxh5 {[%clk 01:29:39]} {[%emt 00:00:26]} Qf6 {[%clk 00:59:22]}
{[%emt 00:00:27]} 12. exf5 {[%clk 01:22:28]} {[%emt 00:07:41]} Bxf5 {[%clk
00:52:02]} {[%emt 00:07:49]} 13. Ne4 {[%clk 01:18:44]} {[%emt 00:04:15]} Qe6
{[%clk 00:49:19]} {[%emt 00:03:15]} 14. f4 {[%clk 01:12:01]} {[%emt 00:07:12]}
Bxe4 {[%clk 00:30:04]} {[%emt 00:19:45]} 15. Bxe4 {[%clk 01:06:57]} {[%emt
00:05:34]} f5 {[%clk 00:27:30]} {[%emt 00:03:04]} 16. Bg2 {[%clk 01:06:01]}
{[%emt 00:01:25]} Nd7 {[%clk 00:26:36]} {[%emt 00:01:25]} 17. fxe5 {[%clk
00:59:24]} {[%emt 00:07:08]} dxe5 {[%clk 00:19:52]} {[%emt 00:07:14]} 18. Bd2
{[%clk 00:57:27]} {[%emt 00:02:25]} Qf7 {[%clk 00:12:48]} {[%emt 00:07:34]} 19.
Qh4 {[%clk 00:55:23]} {[%emt 00:02:34]} Qg6 {[%clk 00:10:57]} {[%emt 00:02:23]}
20. Rae1 {[%clk 00:54:36]} {[%emt 00:01:16]} Qd6 {[%clk 00:06:44]} {[%emt
00:04:43]} 21. Bb4 {[%clk 00:52:06]} {[%emt 00:02:59]} Qf6 {[%clk 00:01:17]}
{[%emt 00:05:58]} 22. Qc4+ {[%clk 00:43:33]} {[%emt 00:09:03]} Rf7 {[%clk
00:01:35]} {[%emt 00:00:13]} 23. Bc3 {[%clk 00:38:35]} {[%emt 00:05:27]} Re8
{[%clk 00:02:03]} {[%emt 00:00:02]} 24. Kh2 {[%clk 00:34:38]} {[%emt 00:04:27]}
Qe6 {[%clk 00:01:50]} {[%emt 00:00:43]} 25. Qxe6 {[%clk 00:32:35]} {[%emt
00:02:33]} Rxe6 {[%clk 00:02:18]} {[%emt 00:00:03]} 26. g4 {[%clk 00:32:38]}
{[%emt 00:00:26]} fxg4 {[%clk 00:01:59]} {[%emt 00:00:49]} 27. hxg4 {[%clk
00:31:36]} {[%emt 00:01:31]} Rxf1 {[%clk 00:02:08]} {[%emt 00:00:21]} 28. Rxf1
{[%clk 00:31:03]} {[%emt 00:01:02]} Nf6 {[%clk 00:01:49]} {[%emt 00:00:49]} 29.
Kg3 {[%clk 00:26:23]} {[%emt 00:05:10]} e4 {[%clk 00:01:08]} {[%emt 00:01:13]}
30. Re1 {[%clk 00:25:23]} {[%emt 00:01:29]} Kf7 {[%clk 00:00:37]} {[%emt
00:01:01]} 31. dxe4 {[%clk 00:23:48]} {[%emt 00:02:05]} Bf8 {[%clk 00:01:04]}
{[%emt 00:00:03]} 32. e5 {[%clk 00:22:00]} {[%emt 00:02:18]} Nd7 {[%clk
00:01:14]} {[%emt 00:00:21]} 33. Kf4 {[%clk 00:19:53]} {[%emt 00:02:37]} Be7
{[%clk 00:01:14]} {[%emt 00:00:30]} 34. Kf5 {[%clk 00:18:03]} {[%emt 00:02:19]}
Bf8 {[%clk 00:00:47]} {[%emt 00:00:58]} 35. Rd1 {[%clk 00:16:58]} {[%emt
00:01:34]} 1-0

[Event "32nd NATO Chess Championship"]
[Site "Tartu, Estonia"]
[Date "2022.06.28"]
[Round "3.26"]
[White "Simard, Francois"]
[Black "Pirs, Matjaz"]
[Result "1-0"]
[TimeControl "90 min + 30 sec increment from move one"]
[WhiteFideId "2621681"]
[BlackFideId "14606941"]
[WhiteElo "1757"]
[BlackElo "1965"]

1. d4 {[%clk 01:30:57]} {[%emt 00:00:03]} Nf6 {[%clk 01:30:50]} {[%emt
00:00:10]} 2. c4 {[%clk 01:31:22]} {[%emt 00:00:05]} e6 {[%clk 01:31:08]}
{[%emt 00:00:12]} 3. Nc3 {[%clk 01:31:26]} {[%emt 00:00:28]} d5 {[%clk
01:31:19]} {[%emt 00:00:20]} 4. Bg5 {[%clk 01:31:31]} {[%emt 00:00:24]} Nbd7
{[%clk 01:31:03]} {[%emt 00:00:45]} 5. e3 {[%clk 01:30:53]} {[%emt 00:01:08]}
Be7 {[%clk 01:19:53]} {[%emt 00:11:40]} 6. Nf3 {[%clk 01:30:59]} {[%emt
00:00:24]} O-O {[%clk 01:20:15]} {[%emt 00:00:08]} 7. Bd3 {[%clk 01:30:51]}
{[%emt 00:00:38]} dxc4 {[%clk 01:20:32]} {[%emt 00:00:14]} 8. Bxc4 {[%clk
01:31:14]} {[%emt 00:00:06]} a6 {[%clk 01:20:42]} {[%emt 00:00:21]} 9. O-O
{[%clk 01:26:17]} {[%emt 00:05:26]} b5 {[%clk 01:20:48]} {[%emt 00:00:24]} 10.
Bd3 {[%clk 01:26:38]} {[%emt 00:00:10]} Bb7 {[%clk 01:20:33]} {[%emt 00:00:44]}
11. Rc1 {[%clk 01:25:47]} {[%emt 00:01:21]} c5 {[%clk 01:13:31]} {[%emt
00:07:33]} 12. dxc5 {[%clk 01:21:11]} {[%emt 00:05:07]} Nxc5 {[%clk 01:12:06]}
{[%emt 00:01:55]} 13. Be2 {[%clk 01:20:28]} {[%emt 00:01:12]} Qb6 {[%clk
01:09:24]} {[%emt 00:03:12]} 14. b4 {[%clk 01:12:39]} {[%emt 00:08:19]} Nce4
{[%clk 01:06:47]} {[%emt 00:03:05]} 15. Nxe4 {[%clk 01:11:27]} {[%emt
00:01:43]} Bxe4 {[%clk 01:06:45]} {[%emt 00:00:33]} 16. Qb3 {[%clk 01:05:18]}
{[%emt 00:06:38]} Bd5 {[%clk 01:03:01]} {[%emt 00:04:13]} 17. Qb2 {[%clk
01:03:35]} {[%emt 00:02:15]} Qb7 {[%clk 01:02:03]} {[%emt 00:01:28]} 18. Rfd1
{[%clk 01:01:17]} {[%emt 00:02:47]} Rfc8 {[%clk 00:58:33]} {[%emt 00:04:00]} 19.
Ne1 {[%clk 00:58:50]} {[%emt 00:02:57]} h6 {[%clk 00:55:24]} {[%emt 00:03:38]}
20. Bh4 {[%clk 00:57:26]} {[%emt 00:01:54]} Rxc1 {[%clk 00:32:17]} {[%emt
00:23:38]} 21. Rxc1 {[%clk 00:57:26]} {[%emt 00:00:30]} Rc8 {[%clk 00:32:30]}
{[%emt 00:00:17]} 22. a3 {[%clk 00:56:40]} {[%emt 00:01:16]} Qd7 {[%clk
00:15:51]} {[%emt 00:17:08]} 23. Rxc8+ {[%clk 00:48:41]} {[%emt 00:08:30]} Qxc8
{[%clk 00:16:15]} {[%emt 00:00:06]} 24. Qc2 {[%clk 00:47:41]} {[%emt 00:01:30]}
Qb7 {[%clk 00:15:26]} {[%emt 00:01:18]} 25. Bf3 {[%clk 00:47:12]} {[%emt
00:00:59]} g5 {[%clk 00:15:01]} {[%emt 00:00:55]} 26. Bxd5 {[%clk 00:45:54]}
{[%emt 00:01:49]} Nxd5 {[%clk 00:15:05]} {[%emt 00:00:26]} 27. Bg3 {[%clk
00:46:07]} {[%emt 00:00:17]} a5 {[%clk 00:14:36]} {[%emt 00:01:00]} 28. bxa5
{[%clk 00:27:39]} {[%emt 00:18:59]} Bxa3 {[%clk 00:14:51]} {[%emt 00:00:15]} 29.
Nd3 {[%clk 00:21:46]} {[%emt 00:06:22]} Qa8 {[%emt 00:08:15]} 30. Bc7 {[%clk
00:20:55]} {[%emt 00:01:21]} Qc8 {[%clk 00:06:24]} {[%emt 00:01:13]} 31. Qb3
{[%clk 00:20:28]} {[%emt 00:00:56]} Nxc7 {[%clk 00:04:13]} {[%emt 00:02:42]} 32.
Qxa3 {[%clk 00:20:46]} {[%emt 00:00:12]} Na6 {[%clk 00:04:39]} {[%emt
00:00:04]} 33. g3 {[%clk 00:19:58]} {[%emt 00:01:18]} Qc7 {[%clk 00:04:06]}
{[%emt 00:01:02]} 34. Qa1 {[%clk 00:16:54]} {[%emt 00:03:35]} Qd8 {[%clk
00:04:11]} {[%emt 00:00:26]} 35. Ne5 {[%clk 00:15:03]} {[%emt 00:02:20]} Qd5
{[%clk 00:03:17]} {[%emt 00:01:20]} 36. Qc3 {[%clk 00:13:35]} {[%emt 00:02:02]}
Qc5 {[%clk 00:01:51]} {[%emt 00:01:56]} 37. Qxc5 {[%clk 00:11:28]} {[%emt
00:02:37]} Nxc5 {[%clk 00:02:18]} {[%emt 00:00:04]} 38. Kf1 {[%clk 00:11:27]}
{[%emt 00:00:31]} f6 {[%clk 00:01:44]} {[%emt 00:01:04]} 39. Nc6 {[%clk
00:11:34]} {[%emt 00:00:23]} Na6 {[%clk 00:01:47]} {[%emt 00:00:27]} 40. Ke2
{[%clk 00:10:35]} {[%emt 00:01:29]} Kf7 {[%clk 00:01:26]} {[%emt 00:00:52]} 41.
Kd3 {[%clk 00:10:25]} {[%emt 00:00:39]} e5 {[%clk 00:01:42]} {[%emt 00:00:14]}
42. Na7 {[%clk 00:10:35]} {[%emt 00:00:20]} Nc7 {[%clk 00:01:57]} {[%emt
00:00:16]} 43. Kc3 {[%clk 00:10:47]} {[%emt 00:00:17]} Nd5+ {[%clk 00:01:01]}
{[%emt 00:01:26]} 44. Kb3 {[%clk 00:11:08]} {[%emt 00:00:09]} b4 {[%clk
00:00:59]} {[%emt 00:00:32]} 45. Nc6 {[%clk 00:11:18]} {[%emt 00:00:20]} Ke6
{[%clk 00:00:51]} {[%emt 00:00:39]} 46. Nxb4 {[%clk 00:11:12]} {[%emt
00:00:35]} Nc7 {[%clk 00:01:18]} {[%emt 00:00:03]} 47. Kc4 {[%clk 00:09:24]}
{[%emt 00:02:18]} Kd6 {[%clk 00:01:30]} {[%emt 00:00:18]} 48. a6 {[%clk
00:09:30]} {[%emt 00:00:24]} f5 {[%clk 00:01:57]} {[%emt 00:00:03]} 49. a7
{[%clk 00:09:45]} {[%emt 00:00:14]} Na8 {[%clk 00:02:23]} {[%emt 00:00:04]} 50.
Nd5 {[%clk 00:09:18]} {[%emt 00:00:57]} h5 {[%clk 00:02:32]} {[%emt 00:00:21]}
51. Nf6 {[%clk 00:04:46]} {[%emt 00:05:02]} h4 {[%clk 00:02:51]} {[%emt
00:00:11]} 52. gxh4 {[%clk 00:04:38]} {[%emt 00:00:37]} gxh4 {[%clk 00:03:16]}
{[%emt 00:00:05]} 53. Nh7 {[%clk 00:04:45]} {[%emt 00:00:23]} Nb6+ {[%clk
00:03:25]} {[%emt 00:00:22]} 54. Kb5 {[%clk 00:05:04]} {[%emt 00:00:11]} Nd5
{[%clk 00:03:34]} {[%emt 00:00:20]} 55. Ka5 {[%clk 00:04:45]} {[%emt 00:00:49]}
Nc7 {[%clk 00:02:49]} {[%emt 00:01:16]} 56. Kb6 {[%clk 00:04:57]} {[%emt
00:00:18]} 1-0